bitfinex/quotes_BTCUSD_20250614
["timestamp","ask_amount","ask_price","bid_price","bid_amount"]
[1749931400125,0.63734869,104850.0,104840.0,0.30225722]
[1749931400317,0.6306737,104850.0,104840.0,0.30225722]
[1749931400545,0.62781063,104850.0,104840.0,0.26410486]
[1749931400780,0.62781058,104850.0,104840.0,0.26410513]
[1749931401006,0.62781055,104850.0,104840.0,0.28318136]
[1749931401228,0.62113591,104850.0,104840.0,0.28318136]
[1749931401449,0.62781007,104850.0,104840.0,0.28318136]
[1749931401677,0.62781059,104850.0,104840.0,0.29271934]
[1749931402157,0.6189116,104850.0,104840.0,0.29271934]
[1749931402391,0.43371686,104850.0,104840.0,0.29271934]
[1749931402621,0.12450462,104850.0,104840.0,0.29271934]
[1749931402862,0.00953716,104850.0,104840.0,0.35156133]
[1749931403089,0.02797466,104850.0,104840.0,0.35156133]
[1749931403326,0.00953688,104850.0,104840.0,0.35156096]
[1749931403575,0.04704863,104850.0,104840.0,0.35156096]
[1749931403797,0.03814753,104850.0,104840.0,0.35156096]
[1749931404032,0.04704903,104850.0,104840.0,0.35156096]
[1749931404297,0.03751202,104850.0,104840.0,0.35156096]
[1749931404564,0.06397694,104860.0,104850.0,0.2098229]
[1749931404794,0.25322408,104860.0,104850.0,0.2713229]
[1749931405023,0.24432242,104860.0,104850.0,0.2713229]
[1749931405515,0.24368833,104860.0,104850.0,0.26178593]
[1749931405762,0.23415199,104860.0,104850.0,0.26178593]
[1749931406026,0.27380921,104860.0,104850.0,0.26178593]
[1749931406246,0.27380919,104860.0,104850.0,0.26178593]
[1749931406466,0.27380921,104860.0,104850.0,0.26178593]
[1749931406686,0.25537064,104860.0,104850.0,0.26178593]
[1749931406910,0.6042727,104860.0,104850.0,0.26178593]
[1749931407124,0.62482862,104860.0,104850.0,0.26178593]
[1749931407353,0.63373069,104860.0,104850.0,0.26178593]
[1749931407567,0.63373069,104860.0,104850.0,0.26178602]
[1749931407778,0.63373069,104860.0,104850.0,0.28086043]
[1749931407779,0.62482862,104860.0,104850.0,0.28086043]
[1749931408065,0.61815207,104860.0,104850.0,0.28086043]
[1749931408277,0.63373069,104860.0,104850.0,0.28086043]
[1749931408929,0.61815207,104860.0,104850.0,0.27132327]
[1749931409156,0.62705414,104860.0,104850.0,0.27132327]
[1749931409383,0.62482862,104860.0,104850.0,0.27132327]
[1749931409611,0.61815207,104860.0,104850.0,0.27132327]
[1749931409865,0.45253629,104860.0,104850.0,0.29039713]
[1749931410080,0.09409849,104860.0,104850.0,0.35422567]
[1749931410315,0.09261427,104860.0,104850.0,0.35422567]
[1749931410542,0.10215065,104860.0,104850.0,0.35422567]
[1749931410984,0.10278432,104860.0,104850.0,0.29039713]
[1749931411233,0.12122396,104860.0,104850.0,0.29039713]
[1749931411439,0.10278432,104860.0,104850.0,0.29039713]
[1749931411688,0.11168782,104860.0,104850.0,0.29039713]
[1749931412537,0.30241839,104860.0,104850.0,0.28086034]
[1749931412774,0.10278432,104860.0,104850.0,0.29039713]
[1749931413451,0.11232075,104860.0,104850.0,0.29039713]
[1749931413673,0.1212247,104860.0,104850.0,0.29039713]
[1749931413894,0.1212247,104860.0,104850.0,0.35517928]
[1749931414319,0.12122493,104860.0,104850.0,0.35517928]
[1749931414528,0.11232075,104860.0,104850.0,0.35517928]
[1749931414735,0.00890433,104860.0,104850.0,0.35547928]
[1749931414949,0.00890434,104860.0,104850.0,0.12658215]
[1749931415193,0.36945975,104870.0,104860.0,0.0316]
[1749931415461,0.37836419,104870.0,104860.0,0.0316]
[1749931415686,0.5690765,104870.0,104860.0,0.0316]
[1749931416360,0.56439849,104870.0,104860.0,0.0316]
[1749931416573,0.5621723,104870.0,104860.0,0.0316]
[1749931416786,0.37368662,104870.0,104860.0,0.0316]
[1749931416999,0.38669579,104870.0,104860.0,0.0316]
[1749931417415,0.38692238,104870.0,104860.0,0.0316]
[1749931417632,0.38669593,104870.0,104860.0,0.0316]
[1749931417853,0.37801691,104870.0,104860.0,0.0316]
[1749931418069,0.38469593,104870.0,104860.0,0.0316]
[1749931418276,0.38692221,104870.0,104860.0,0.0316]
[1749931418485,0.38892215,104870.0,104860.0,0.0316]
[1749931418961,0.39560073,104870.0,104860.0,0.0316]
[1749931419150,0.38892249,104870.0,104860.0,0.0316]
[1749931419365,0.3866961,104870.0,104860.0,0.0316]
[1749931419580,0.38692257,104870.0,104860.0,0.0316]
[1749931419790,0.39360206,104870.0,104860.0,0.0316]
[1749931420003,0.39360213,104870.0,104860.0,0.0316]
[1749931420453,0.38692278,104870.0,104860.0,0.0316]
[1749931420657,0.39360235,104870.0,104860.0,0.0316]
[1749931420862,0.38692299,104870.0,104860.0,0.0316]
[1749931421074,0.38469647,104870.0,104860.0,0.0316]
[1749931421287,0.38692298,104870.0,104860.0,0.0316]
[1749931421514,0.38469642,104870.0,104860.0,0.0316]
[1749931421730,0.39360213,104870.0,104860.0,0.0316]
[1749931421938,0.38692277,104870.0,104860.0,0.0316]
[1749931422160,0.39360213,104870.0,104860.0,0.0316]
[1749931422384,0.39360168,104870.0,104860.0,0.0316]
[1749931422606,0.39360175,104870.0,104860.0,0.0641]
[1749931422828,0.39360193,104870.0,104860.0,0.0641]
[1749931423074,0.39360237,104870.0,104860.0,0.0641]
[1749931423315,0.38469634,104870.0,104860.0,0.0641]
[1749931423541,0.03801691,104870.0,104860.0,0.07074841]
[1749931423963,0.34,104880.0,104860.0,0.0325]
[1749931424175,0.35606218,104880.0,104860.0,0.0325]
[1749931424403,0.4004346,104880.0,104860.0,0.0325]
[1749931424620,0.40043465,104880.0,104870.0,0.24148253]
[1749931424830,0.40328856,104880.0,104870.0,0.24148253]
[1749931425038,0.40996887,104880.0,104870.0,0.24148253]
[1749931425252,0.39375478,104880.0,104870.0,0.24148253]
[1749931425487,0.40328866,104880.0,104870.0,0.24148253]
[1749931425698,0.4004349,104880.0,104870.0,0.24148253]
[1749931425912,0.40106221,104880.0,104870.0,0.24148253]
[1749931426126,0.39438202,104880.0,104870.0,0.24148253]
[1749931426340,0.40996946,104880.0,104870.0,0.24148253]
[1749931426561,0.41282348,104880.0,104870.0,0.24148253]
[1749931426786,0.41282357,104880.0,104870.0,0.24148253]
[1749931427004,0.42013131,104880.0,104870.0,0.24148253]
[1749931427223,0.4318922,104880.0,104870.0,0.24148308]
[1749931427437,0.4318922,104880.0,104870.0,0.25101824]
[1749931427438,0.62035965,104880.0,104870.0,0.25101824]
[1749931427645,0.64251403,104880.0,104870.0,0.25101824]
[1749931427869,0.63360703,104880.0,104870.0,0.23194783]
[1749931428113,0.6425141,104880.0,104870.0,0.24148326]
[1749931428315,0.63360704,104880.0,104870.0,0.2510186]
[1749931428527,0.64251412,104880.0,104870.0,0.2510186]
[1749931428740,0.62407278,104880.0,104870.0,0.2510186]
[1749931428959,0.62407277,104880.0,104870.0,0.2510186]
[1749931429172,0.64167072,104880.0,104870.0,0.24148326]
[1749931429604,0.63881601,104880.0,104870.0,0.23194783]
[1749931429810,0.60723023,104880.0,104870.0,0.22241231]
[1749931430020,0.60723028,104880.0,104870.0,0.0317]
[1749931430435,0.61391045,104880.0,104870.0,0.0317]
[1749931430725,0.61391044,104880.0,104870.0,0.0317]
[1749931430932,0.60723004,104880.0,104870.0,0.0317]
[1749931431140,0.59832351,104880.0,104870.0,0.0317]
[1749931431350,0.61391004,104880.0,104870.0,0.0317]
[1749931431563,0.60500345,104880.0,104870.0,0.0317]
[1749931431781,0.60723003,104880.0,104870.0,0.26030014]
[1749931431999,0.61390983,104880.0,104870.0,0.26030014]
[1749931432204,0.60723002,104880.0,104870.0,0.0317]
[1749931432644,0.60723004,104880.0,104870.0,0.0317]
[1749931432881,0.60723001,104880.0,104870.0,0.0317]
[1749931433097,0.60722993,104880.0,104870.0,0.0317]
[1749931433383,0.61390955,104880.0,104870.0,0.0317]
[1749931433876,0.59832351,104880.0,104870.0,0.0317]
[1749931434128,0.61390953,104880.0,104870.0,0.0317]
[1749931434338,0.6072298,104880.0,104870.0,0.0317]
[1749931434732,0.6139095,104880.0,104870.0,0.0317]
[1749931434941,0.60722979,104880.0,104870.0,0.0317]
[1749931435153,0.61390948,104880.0,104870.0,0.0317]
[1749931435365,0.61390944,104880.0,104870.0,0.0317]
[1749931435578,0.61390946,104880.0,104870.0,0.0317]
[1749931435790,0.61390948,104880.0,104870.0,0.0317]
[1749931435997,0.6138813,104880.0,104870.0,0.0317]
[1749931436408,0.60720158,104880.0,104870.0,0.0317]
[1749931436635,0.604975,104880.0,104870.0,0.0317]
[1749931436860,0.61388124,104880.0,104870.0,0.0317]
[1749931437128,0.60497503,104880.0,104870.0,0.0317]
[1749931437326,0.60497508,104880.0,104870.0,0.0317]
[1749931437564,0.60497522,104880.0,104870.0,0.0317]
[1749931437801,0.6072019,104880.0,104870.0,0.08257113]
[1749931438065,0.08604192,104880.0,104870.0,0.29393707]
[1749931438295,0.08604192,104880.0,104870.0,0.28281796]
[1749931438296,0.0487717,104880.0,104870.0,0.28281796]
[1749931438553,0.05830648,104880.0,104870.0,0.28281796]
[1749931439009,0.05830658,104880.0,104870.0,0.28281796]
[1749931439239,0.04939893,104880.0,104870.0,0.28281796]
[1749931439451,0.06846733,104880.0,104870.0,0.28581796]
[1749931439667,0.06846724,104880.0,104870.0,0.28581796]
[1749931440092,0.06846724,104880.0,104870.0,0.33537836]
[1749931440307,0.06846724,104880.0,104870.0,0.49241836]
[1749931440530,0.06846724,104880.0,104870.0,0.28981796]
[1749931443236,0.04939893,104880.0,104870.0,0.28981796]
[1749931443717,0.05893299,104880.0,104870.0,0.28981796]
[1749931443941,0.06846715,104880.0,104870.0,0.44685796]
[1749931444804,0.05830894,104880.0,104870.0,0.44685796]
[1749931445063,0.05893309,104880.0,104870.0,0.44685796]
[1749931445273,0.06784309,104880.0,104870.0,0.44685796]
[1749931445491,0.05830888,104880.0,104870.0,0.44685796]
[1749931445704,0.05893309,104880.0,104870.0,0.44685796]
[1749931445910,0.04939893,104880.0,104870.0,0.44685796]
[1749931446129,0.06784313,104880.0,104870.0,0.44685796]
[1749931446550,0.05893309,104880.0,104870.0,0.44685796]
[1749931446979,0.06784311,104880.0,104870.0,0.44685796]
[1749931447197,0.06784309,104880.0,104870.0,0.44685796]
[1749931447420,0.05893309,104880.0,104870.0,0.44685796]
[1749931447838,0.07737736,104880.0,104870.0,0.44685796]
[1749931448054,0.06846734,104880.0,104870.0,0.44685796]
[1749931448274,0.07737666,104880.0,104870.0,0.44685796]
[1749931448495,0.06784181,104880.0,104870.0,0.44685796]
[1749931448744,0.26807022,104880.0,104870.0,0.1043644]
[1749931448994,0.26807022,104880.0,104870.0,0.007]
[1749931448995,1.12199208,104880.0,104870.0,0.007]
[1749931449207,1.14321222,104880.0,104870.0,0.007]
[1749931449428,1.13475867,104880.0,104870.0,0.007]
[1749931449657,0.21936015,104850.0,104840.0,0.23130522]
[1749931449879,0.20982327,104850.0,104840.0,0.00953816]
[1749931450110,0.20982327,104850.0,104840.0,0.20030504]
[1749931450354,0.21872905,104850.0,104840.0,0.20030513]
[1749931450570,0.20982327,104850.0,104840.0,0.20984329]
[1749931450790,0.2187295,104850.0,104840.0,0.20984329]
[1749931451009,0.21872983,104850.0,104840.0,0.20984329]
[1749931451236,0.21472992,104850.0,104840.0,0.007]
[1749931451462,0.20419305,104850.0,104840.0,0.20030522]
[1749931451688,0.19528611,104850.0,104840.0,0.20030522]
[1749931451897,0.204193,104850.0,104840.0,0.20030522]
[1749931452109,0.204193,104850.0,104840.0,0.20984347]
[1749931452315,0.20419262,104850.0,104840.0,0.20984347]
[1749931452530,0.19528611,104850.0,104840.0,0.22138163]
[1749931452739,0.20419265,104850.0,104840.0,0.22138163]
[1749931453401,0.02861129,104850.0,104840.0,0.27245731]
[1749931453614,0.01844356,104850.0,104840.0,0.3791975]
[1749931453849,0.02861047,104850.0,104840.0,0.3791975]
[1749931454301,0.02861047,104850.0,104840.0,0.30445731]
[1749931454738,0.03814772,104850.0,104840.0,0.30445731]
[1749931454952,0.03814772,104850.0,104840.0,0.42949731]
[1749931455165,0.23780242,104850.0,104840.0,0.41042163]
[1749931455390,0.71574711,104850.0,104840.0,0.003]
[1749931455607,0.8413264,104850.0,104840.0,0.003]
[1749931455817,0.84132557,104850.0,104840.0,0.003]
[1749931456026,0.85514356,104850.0,104840.0,0.003]
[1749931456238,0.87072521,104850.0,104840.0,0.003]
[1749931456460,0.87072522,104850.0,104840.0,0.001]
[1749931456709,0.20030522,104840.0,104830.0,0.00953925]
[1749931456919,0.20920887,104840.0,104830.0,0.00953925]
[1749931457123,0.20030522,104840.0,104830.0,0.00953925]
[1749931457332,0.21874694,104840.0,104830.0,0.20032433]
[1749931457549,0.20984329,104840.0,104830.0,0.20032433]
[1749931457760,0.21874698,104840.0,104830.0,0.20032433]
[1749931457984,0.21874698,104840.0,104830.0,0.20337204]
[1749931458195,0.20984329,104840.0,104830.0,0.2129112]
[1749931458405,0.20984329,104840.0,104830.0,0.25485018]
[1749931458607,0.20984329,104840.0,104830.0,0.25685018]
[1749931459245,0.20984329,104840.0,104830.0,0.26638907]
[1749931461007,0.20984329,104840.0,104830.0,0.2473112]
[1749931461221,0.21938108,104840.0,104830.0,0.28995027]
[1749931461434,0.21938108,104840.0,104830.0,0.29948916]
[1749931461890,0.01907531,104840.0,104830.0,0.30902777]
[1749931462115,0.02861319,104840.0,104830.0,0.30902777]
[1749931462340,0.03815135,104840.0,104830.0,0.30902777]
[1749931463006,0.02861319,104840.0,104830.0,0.30902777]
[1749931463241,0.03815126,104840.0,104830.0,0.30902777]
[1749931463927,0.04768942,104840.0,104830.0,0.30902777]
[1749931465868,0.03815126,104840.0,104830.0,0.30902777]
[1749931466664,0.02861319,104840.0,104830.0,0.30902777]
[1749931466876,0.67811975,104850.0,104840.0,0.0314]
[1749931466877,0.48737107,104850.0,104840.0,0.0314]
[1749931467123,0.67811975,104850.0,104840.0,0.04093834]
[1749931468259,0.67811975,104850.0,104840.0,0.04193834]
[1749931468467,0.67811975,104850.0,104840.0,0.23270522]
[1749931468688,0.67811975,104850.0,104840.0,0.0324]
[1749931469325,0.80752174,104850.0,104840.0,0.001]
[1749931469544,0.7547606,104850.0,104840.0,0.001]
[1749931469760,0.76366401,104850.0,104840.0,0.001]
[1749931469979,0.76143765,104850.0,104840.0,0.001]
[1749931470191,0.71694589,104840.0,104830.0,4.771e-05]
[1749931470400,0.21944332,104810.0,104800.0,0.23050512]
[1749931470611,0.21944332,104810.0,104800.0,0.24019011]
[1749931470820,0.20036237,104810.0,104800.0,0.03034319]
[1749931471042,0.19082148,104810.0,104800.0,0.20052486]
[1749931471253,0.19082148,104810.0,104800.0,0.00014319]
[1749931471679,0.19082148,104810.0,104800.0,0.20052468]
[1749931471895,0.41113886,104810.0,104800.0,0.00014319]
[1749931472124,0.44053886,104810.0,104800.0,0.00014319]
[1749931472358,0.44721415,104810.0,104800.0,0.00114319]
[1749931472583,0.44053886,104810.0,104800.0,0.00114319]
[1749931472814,0.47875697,104810.0,104800.0,0.00114319]
[1749931473060,0.37919747,104810.0,104800.0,0.00114319]
[1749931473292,0.3725222,104810.0,104800.0,0.00114319]
[1749931473547,0.37919747,104810.0,104800.0,0.00114319]
[1749931473783,0.71919743,104810.0,104800.0,0.00114319]
[1749931474021,0.86738859,104810.0,104800.0,0.00114319]
[1749931474495,0.86738853,104810.0,104800.0,0.00114319]
[1749931474863,0.86738843,104810.0,104800.0,0.00114319]
[1749931475068,0.86738841,104810.0,104800.0,0.00114319]
[1749931475244,0.86738842,104810.0,104800.0,0.00114319]
[1749931475600,0.86071369,104810.0,104800.0,0.00114319]
[1749931475802,0.86738842,104810.0,104800.0,0.00114319]
[1749931476356,0.64005771,104810.0,104800.0,0.00114319]
[1749931476558,0.83755392,104810.0,104800.0,0.00114319]
[1749931476774,0.83755386,104810.0,104800.0,0.00114319]
[1749931476990,0.83087919,104810.0,104800.0,0.00114319]
[1749931477407,0.83755462,104810.0,104800.0,0.00114319]
[1749931477620,0.83087919,104810.0,104800.0,0.00114319]
[1749931477829,0.20994305,104790.0,104780.0,0.0302]
[1749931478047,0.20994305,104790.0,104780.0,0.24016345]
[1749931478255,0.20994305,104790.0,104780.0,0.0302]
[1749931478471,0.20994305,104790.0,104780.0,0.23061974]
[1749931478685,0.20994305,104790.0,104780.0,0.0634]
[1749931478686,0.23870528,104790.0,104780.0,0.0634]
[1749931478889,0.23870528,104790.0,104780.0,0.0729438]
[1749931479098,0.22916284,104790.0,104780.0,0.0729438]
[1749931479527,0.22916284,104790.0,104780.0,0.0664]
[1749931479767,0.22916284,104790.0,104780.0,0.0759438]
[1749931479969,0.21962013,104790.0,104780.0,0.25727612]
[1749931480179,0.21962013,104790.0,104780.0,0.0664]
[1749931480393,0.21962013,104790.0,104780.0,0.26681992]
[1749931480609,0.21962013,104790.0,104780.0,0.28590725]
[1749931481034,0.21962013,104790.0,104780.0,0.28790725]
[1749931481460,0.21962013,104790.0,104780.0,0.29745078]
[1749931481672,0.21962013,104790.0,104780.0,0.27836363]
[1749931482770,0.21962013,104790.0,104780.0,0.0684]
[1749931482985,0.21962013,104790.0,104780.0,0.0779438]
[1749931483410,0.21962013,104790.0,104780.0,0.0684]
[1749931484487,0.19089433,104770.0,104760.0,0.064]
[1749931484713,0.19089433,104770.0,104760.0,0.06414324]
[1749931485158,0.19089433,104770.0,104760.0,0.26460133]
[1749931485369,0.19089433,104770.0,104760.0,0.06414324]
[1749931485576,0.19089433,104770.0,104760.0,0.29487646]
[1749931485801,0.19089433,104770.0,104760.0,0.28533102]
[1749931486004,0.19089433,104770.0,104760.0,0.09441846]
[1749931486210,0.19189433,104770.0,104760.0,0.09941846]
[1749931486414,0.19189433,104770.0,104760.0,0.10896408]
[1749931486621,0.19189433,104770.0,104760.0,0.06914324]
[1749931487071,0.19289433,104770.0,104760.0,0.07214324]
[1749931490783,0.23461433,104770.0,104760.0,0.07214324]
[1749931491369,0.19289433,104770.0,104760.0,0.07214324]
[1749931491790,0.23461433,104770.0,104760.0,0.07214324]
[1749931493436,0.24128687,104770.0,104760.0,0.07214324]
[1749931493793,0.24128688,104770.0,104760.0,0.07214324]
[1749931494411,0.24128687,104770.0,104760.0,0.07214324]
[1749931494617,0.23461433,104770.0,104760.0,0.07214324]
[1749931494815,0.24128687,104770.0,104760.0,0.07214324]
[1749931495126,0.24128688,104770.0,104760.0,0.07214324]
[1749931495528,0.24128688,104770.0,104760.0,0.03894324]
[1749931495529,0.3055284,104770.0,104760.0,0.03894324]
[1749931495947,0.24128688,104770.0,104760.0,0.03894324]
[1749931496159,0.24128688,104770.0,104760.0,0.06984324]
[1749931496160,0.19956688,104770.0,104760.0,0.06984324]
[1749931496355,0.19956687,104770.0,104760.0,0.06984324]
[1749931496553,0.19956689,104770.0,104760.0,0.06984324]
[1749931496725,0.53956688,104770.0,104760.0,0.06984324]
[1749931496935,0.56216704,104770.0,104760.0,0.06984324]
[1749931497185,0.56216703,104770.0,104760.0,0.06984324]
[1749931497400,0.55549449,104770.0,104760.0,0.06984324]
[1749931497762,0.56216702,104770.0,104760.0,0.06984324]
[1749931498138,0.56216694,104770.0,104760.0,0.06984324]
[1749931498350,0.55549449,104770.0,104760.0,0.06984324]
[1749931498572,0.56216689,104770.0,104760.0,0.06984324]
[1749931498786,0.56216687,104770.0,104760.0,0.06984324]
[1749931498998,0.56216686,104770.0,104760.0,0.06984324]
[1749931499432,0.56216688,104770.0,104760.0,0.06984324]
[1749931499840,0.56216687,104770.0,104760.0,0.06984324]
[1749931500065,0.55549449,104770.0,104760.0,0.06984324]
[1749931500489,0.59865014,104770.0,104760.0,0.06984324]
[1749931500708,0.59865015,104770.0,104760.0,0.06984324]
[1749931500953,0.59197778,104770.0,104760.0,0.06984324]
[1749931501164,0.60388685,104770.0,104760.0,0.06984324]
[1749931501409,0.41861196,104770.0,104760.0,0.28939185]
[1749931501626,0.56820027,104770.0,104760.0,0.27030142]
[1749931501838,0.57458364,104770.0,104760.0,0.27984695]
[1749931502050,0.58125622,104770.0,104760.0,0.27984695]
[1749931502286,0.58125609,104770.0,104760.0,0.27984695]
[1749931502487,0.58125611,104770.0,104760.0,0.28439239]
[1749931502728,0.37127263,104770.0,104760.0,0.30348282]
[1749931502942,0.3706325,104770.0,104760.0,0.30348219]
[1749931503569,0.37730609,104770.0,104760.0,0.30348219]
[1749931503782,0.3706325,104770.0,104760.0,0.30348219]
[1749931504010,0.38972165,104770.0,104760.0,0.30348219]
[1749931504625,0.39639514,104770.0,104760.0,0.30348219]
[1749931504835,0.39639494,104770.0,104760.0,0.30348219]
[1749931505060,0.39639421,104770.0,104760.0,0.30348219]
[1749931505310,0.38972165,104770.0,104760.0,0.30348219]
[1749931505721,0.3963936,104770.0,104760.0,0.30348219]
[1749931506146,0.38972165,104770.0,104760.0,0.30348219]
[1749931506357,0.41263707,104770.0,104760.0,0.2939372]
[1749931506594,0.38972174,104770.0,104760.0,0.30348228]
[1749931506811,0.38017703,104770.0,104760.0,0.30348228]
[1749931507026,0.39183356,104770.0,104760.0,0.30348174]
[1749931507250,0.38228902,104770.0,104760.0,0.30348174]
[1749931507467,0.39183355,104770.0,104760.0,0.36877378]
[1749931507672,0.39183357,104770.0,104760.0,0.36877378]
[1749931507876,0.38516146,104770.0,104760.0,0.36877378]
[1749931508110,0.39176674,104770.0,104760.0,0.36877378]
[1749931508319,0.37555011,104770.0,104760.0,0.30348174]
[1749931508528,0.3822223,104770.0,104760.0,0.30348174]
[1749931508743,0.37555011,104770.0,104760.0,0.30348174]
[1749931508948,0.38222234,104770.0,104760.0,0.30348174]
[1749931509154,0.36600576,104770.0,104760.0,0.30348174]
[1749931509361,0.37267396,104770.0,104760.0,0.36877378]
[1749931509566,0.35646159,104770.0,104760.0,0.36877378]
[1749931509773,0.01646159,104770.0,104760.0,0.36877378]
[1749931509978,0.02600576,104770.0,104760.0,0.36877378]
[1749931510663,0.02600585,104770.0,104760.0,0.36877378]
[1749931510880,0.02600576,104770.0,104760.0,0.36877378]
[1749931511098,0.02600566,104770.0,104760.0,0.36877378]
[1749931511749,0.03554992,104770.0,104760.0,0.30348174]
[1749931512166,0.01646159,104770.0,104760.0,0.30348174]
[1749931513245,0.00691761,104770.0,104760.0,0.30348174]
[1749931513451,0.01646159,104770.0,104760.0,0.30348174]
[1749931514333,0.00691761,104770.0,104760.0,0.30348174]
[1749931514538,0.00691761,104770.0,104760.0,0.46501554]
[1749931515831,0.22146055,104770.0,104760.0,0.26530124]
[1749931516050,0.03056613,104770.0,104760.0,0.29393684]
[1749931516270,0.0634,104760.0,104730.0,0.028689]
[1749931516501,0.0634,104760.0,104700.0,0.0314]
[1749931516502,0.01909991,104710.0,104700.0,0.0314]
[1749931516727,0.20053448,104720.0,104700.0,0.25047402]
[1749931516945,0.2292029,104710.0,104700.0,0.25047464]
[1749931517158,0.22920354,104710.0,104700.0,0.25047477]
[1749931517381,0.01909991,104710.0,104700.0,0.26957622]
[1749931517609,0.01909936,104710.0,104700.0,0.31062667]
[1749931517849,0.03819945,104710.0,104700.0,0.31162667]
[1749931518063,0.03834179,104710.0,104700.0,0.31162667]
[1749931518276,0.0287917,104710.0,104700.0,0.31162667]
[1749931518490,0.03834188,104710.0,104700.0,0.31162667]
[1749931518696,0.0287917,104710.0,104700.0,0.31162667]
[1749931518906,0.00969188,104710.0,104700.0,0.31162667]
[1749931519117,0.01924161,104710.0,104700.0,0.31162641]
[1749931519344,0.02979152,104710.0,104700.0,0.31162641]
[1749931519572,0.02024161,104710.0,104700.0,0.31162641]
[1749931519785,0.02024161,104710.0,104700.0,0.30267578]
[1749931519786,0.02979133,104710.0,104700.0,0.30267578]
[1749931520005,0.02979133,104710.0,104700.0,0.31162641]
[1749931520217,0.38789155,104720.0,104700.0,0.31162534]
[1749931520423,0.5855369,104720.0,104700.0,0.37099412]
[1749931520707,0.6082619,104720.0,104700.0,0.31210316]
[1749931520923,0.01909945,104710.0,104700.0,0.26210235]
[1749931521140,0.02864908,104710.0,104700.0,0.26210235]
[1749931521358,0.02864899,104710.0,104700.0,0.27105298]
[1749931521589,0.45546702,104720.0,104710.0,0.21965317]
[1749931521845,0.44880701,104720.0,104710.0,0.25075317]
[1749931522053,0.44880664,104720.0,104710.0,0.25970406]
[1749931522265,0.43763008,104720.0,104710.0,0.25075317]
[1749931522487,0.43763008,104720.0,104710.0,0.32810609]
[1749931522696,0.02864163,104720.0,104710.0,0.32810605]
[1749931522916,0.02864163,104720.0,104710.0,0.32810589]
[1749931523124,0.37530511,104730.0,104720.0,0.25073219]
[1749931523343,0.37530511,104730.0,104720.0,0.25968239]
[1749931523344,0.3781917,104730.0,104720.0,0.25968239]
[1749931523567,0.34954763,104730.0,104720.0,0.2596824]
[1749931523782,0.34954763,104730.0,104720.0,0.25073219]
[1749931523783,0.36864352,104730.0,104720.0,0.25073219]
[1749931523995,0.37819188,104730.0,104720.0,0.25073237]
[1749931524219,0.57515912,104730.0,104720.0,0.24218375]
[1749931524444,0.60377079,104730.0,104720.0,0.22063265]
[1749931524855,0.64215764,104730.0,104720.0,0.22063265]
[1749931525068,0.68793858,104730.0,104720.0,0.19198548]
[1749931525294,0.6812771,104730.0,104720.0,0.21148484]
[1749931525482,0.6842771,104730.0,104720.0,0.22103393]
[1749931525725,0.6260622,104730.0,104720.0,0.21208375]
[1749931525936,0.61651412,104730.0,104720.0,0.002]
[1749931526158,0.61651412,104730.0,104720.0,0.01095018]
[1749931526381,0.62317612,104730.0,104720.0,0.01095018]
[1749931526602,0.74201517,104730.0,104720.0,0.002]
[1749931526810,0.74201513,104730.0,104720.0,0.01095041]
[1749931527052,0.7353531,104730.0,104720.0,0.01095041]
[1749931527261,0.74201512,104730.0,104720.0,0.002]
[1749931527887,0.74201429,104730.0,104720.0,0.002]
[1749931528352,0.83150232,104730.0,104720.0,0.002]
[1749931528786,0.83816351,104730.0,104720.0,0.002]
[1749931529208,0.83150232,104730.0,104720.0,0.002]
[1749931529425,0.81556629,104730.0,104720.0,0.002]
[1749931529689,1.06320468,104730.0,104700.0,0.00047766]
[1749931529921,0.35910748,104670.0,104650.0,0.27087558]
[1749931530164,0.02866286,104660.0,104650.0,0.26086504]
[1749931530384,0.21975829,104660.0,104650.0,0.05124234]
[1749931530596,0.210204,104660.0,104650.0,0.27042139]
[1749931530807,0.210204,104660.0,104650.0,0.28057765]
[1749931531046,0.210204,104660.0,104650.0,0.28953262]
[1749931531259,0.01910848,104660.0,104650.0,0.2901323]
[1749931531476,0.02110848,104660.0,104650.0,0.2911323]
[1749931531684,0.01155401,104660.0,104650.0,0.2911323]
[1749931531896,0.02110811,104660.0,104650.0,0.2911323]
[1749931532113,0.02210811,104660.0,104650.0,0.30108727]
[1749931532333,0.02210811,104660.0,104650.0,0.29153225]
[1749931532546,0.04121687,104660.0,104650.0,0.2921323]
[1749931532755,0.02210811,104660.0,104650.0,0.2921323]
[1749931532970,0.05080889,104660.0,104650.0,0.30108727]
[1749931533208,0.04125479,104660.0,104650.0,0.2921323]
[1749931533661,0.05080899,104660.0,104650.0,0.30108727]
[1749931533881,0.05080899,104660.0,104650.0,0.2921323]
[1749931534096,0.05080899,104660.0,104650.0,0.30108727]
[1749931534313,0.04125488,104660.0,104650.0,0.2921323]
[1749931534524,0.05080908,104660.0,104650.0,0.2921323]
[1749931534750,0.05080917,104660.0,104650.0,0.2921323]
[1749931534965,0.06036373,104660.0,104650.0,0.30108727]
[1749931535203,0.09949537,104660.0,104650.0,0.30108738]
[1749931535433,0.09949537,104660.0,104650.0,0.2921323]
[1749931535551,0.26188956,104660.0,104650.0,0.29153226]
[1749931535781,0.32685789,104660.0,104650.0,0.26103248]
[1749931536046,0.32685789,104660.0,104650.0,0.26043262]
[1749931536466,0.32685789,104660.0,104650.0,0.23176638]
[1749931536691,0.31730379,104660.0,104650.0,0.24132176]
[1749931536927,0.25233546,104660.0,104650.0,0.25087699]
[1749931537166,0.25233546,104660.0,104650.0,0.25983239]
[1749931537408,0.59233546,104660.0,104650.0,0.25983239]
[1749931537639,0.71737469,104660.0,104650.0,0.04005359]
[1749931537878,0.71737469,104660.0,104650.0,0.0400536]
[1749931538109,0.71737469,104660.0,104650.0,0.02214234]
[1749931538582,0.71737469,104660.0,104650.0,0.04005372]
[1749931538805,0.71737469,104660.0,104650.0,0.02214234]
[1749931539282,0.7078204,104660.0,104650.0,0.02214234]
[1749931539507,0.7078204,104660.0,104650.0,0.031698]
[1749931539729,0.7078204,104660.0,104650.0,0.27412209]
[1749931539956,0.7078204,104660.0,104650.0,0.2645668]
[1749931540174,0.7078204,104660.0,104650.0,0.27412227]
[1749931540399,0.7365454,104660.0,104650.0,0.27412227]
[1749931540872,0.7365454,104660.0,104650.0,0.28367765]
[1749931541156,0.7365454,104660.0,104650.0,0.29323294]
[1749931542244,0.7365454,104660.0,104650.0,0.28367765]
[1749931542719,0.43965411,104660.0,104650.0,0.2932323]
[1749931542934,0.39090577,104660.0,104650.0,0.3235323]
[1749931543332,0.40046024,104660.0,104650.0,0.3235323]
[1749931543973,0.4100148,104660.0,104650.0,0.3235323]
[1749931545198,0.39090577,104660.0,104650.0,0.3235323]
[1749931545399,0.40046033,104660.0,104650.0,0.3235323]
[1749931546009,0.40046033,104660.0,104650.0,0.34146581]
[1749931546481,0.03179747,104660.0,104650.0,0.39472827]
[1749931546702,0.003,104660.0,104650.0,0.58201406]
[1749931546908,0.003,104660.0,104650.0,0.59994533]
[1749931547317,0.003,104660.0,104650.0,0.59994484]